Cogmind - Beta 15 @@@ ROGUE MODE // 2025.10.11 @ 18:06:06 Player: microsand Result: Destroyed by G-47 Trooper with Particle Gun Performance ------------- Evolutions (2) 1000 Regions Visited (5) 1000 Robots Destroyed (24) 120 Value Destroyed (855) 855 Prototype IDs (1) 20 Alien Tech Used (0) 0 Bonus (700) 700 TOTAL SCORE: 3695 Bonus ------- Entered Garrisons 200 Used RIF Installer 500 Cogmind --------- Core Integrity 0/550 Matter 61/300 Energy 100/100 System Corruption 0% Temperature Cool (12) Movement Core (50) Location -8/Garrison Parts ------- > --- POWER (1) -------- (None) > --- PROPULSION (3) --- (None) > --- UTILITY (5) ------ Improved Targeting Computer Advanced Targeting Computer > --- WEAPON (2) ------- (None) > --- INVENTORY (5) ---- Light Ion Engine Mining Laser Peak State ------------ > --- POWER ------------ Light Nuclear Core > --- PROPULSION ------- Flight Unit Flight Unit Flight Unit > --- UTILITY ---------- Heat Sink Improved Targeting Computer Advanced Targeting Computer High-powered Tractor Beam > --- WEAPON ----------- Heavy Particle Gun Light Assault Rifle > --- INVENTORY -------- Light Ion Engine Particle Gun Subdweller Shrapnel Launcher Mining Laser [Rating: 20] Favorites ----------- Power Light Ion Engine Engine Light Ion Engine Power Core Light Nuclear Core Propulsion Aluminum Leg Leg Aluminum Leg Flight Unit Flight Unit Utility Heat Sink Device Heat Sink Storage Small Storage Unit Processor Advanced Targeting Computer Weapon Light Assault Rifle Energy Gun Particle Gun Ballistic Gun Light Assault Rifle Launcher Subdweller Shrapnel Launcher Special Weapon Mining Laser Build | -11 -10 -10 -10 -8 -8 ------- Run | Yrd Mat Min Sub Mat Gar Slots Evolved 4 | . . . . 4 . Power . | . . . . . . Propulsion 1 | . . . . 1 . Utility 3 | . . . . 3 . Weapon . | . . . . . . Parts Attached 24 | 6 7 1 . 9 1 Power 3 | 1 . 1 . 1 . Engine 2 | 1 . 1 . . . Core 1 | . . . . 1 . Reactor . | . . . . . . Propulsion 8 | 2 2 . . 4 . Treads . | . . . . . . Leg 2 | 2 . . . . . Wheel . | . . . . . . Hover . | . . . . . . Flight 6 | . 2 . . 4 . Utility 6 | 1 2 . . 3 . Device 3 | . 2 . . 1 . Storage 1 | 1 . . . . . Processor 2 | . . . . 2 . Hackware . | . . . . . . Protection . | . . . . . . Artifact . | . . . . . . Weapon 7 | 2 3 . . 1 1 Energy Gun 3 | . 2 . . 1 . Energy Cannon . | . . . . . . Ballistic Gun 2 | 2 . . . . . Ballistic Cannon . | . . . . . . Launcher 1 | . . . . . 1 Special Weapon 1 | . 1 . . . . Impact Weapon . | . . . . . . Slashing Weapon . | . . . . . . Piercing Weapon . | . . . . . . Special Melee Weapon . | . . . . . . Unidentified Prototypes 1 | . . . . 1 . Parts Lost 13 | . 1 1 . 1 10 Power 2 | . . 1 . . 1 Propulsion 4 | . . . . 1 3 Utility 3 | . 1 . . . 2 Weapon 4 | . . . . . 4 Highest Loss Streak 7 | . 1 1 . 1 7 To Critical Strikes . | . . . . . . Average Backups 3 | . 3 4 4 4 3 Power . | . . 1 1 1 1 Propulsion . | . . . 1 . . Utility . | . . 1 1 . . Weapon 1 | . 2 1 1 2 2 Tool/Special . | . . . . . . Unused Backups 3 | . 1 . . 2 . Power . | . . . . . . Propulsion . | . . . . . . Utility 3 | . 1 . . 2 . Weapon . | . . . . . . Tool/Special . | . . . . . . Average Slot Usage (%) 64 | . 98 71 85 62 33 Engine 6 | . 14 9 14 1 . Leg 7 | . 25 . . . . Flight 8 | . 2 19 28 22 1 Device 8 | . 13 14 14 11 1 Storage 3 | . 12 . . . . Processor 7 | . . . . 1 18 Energy Gun 8 | . 8 18 5 6 5 Ballistic Gun 9 | . 19 9 14 9 . Launcher 2 | . . . . . 5 Special Weapon 1 | . . . 8 2 . Peak Build Rating 20 | 6 9 7 7 20 20 Average Rating 7 | 5 7 6 6 12 8 On Entrance 7 | . 6 7 7 6 20 Naked Turns . | . . . . . . Heaviest Build 13 | 10 13 8 8 11 11 Greatest Support 20 | 20 20 8 8 12 12 Greatest Overweight (x) 3 | . . 1 . 3 3 Average Overweight (x) . | . . . . . 1 Largest Inventory Capacity 8 | 8 8 5 5 5 5 Average Capacity 6 | 7 7 5 5 5 5 Most Carried 8 | 4 8 5 5 5 5 Average Carried 3 | . 4 4 4 4 3 Final Capacity 8 | 8 5 5 5 5 5 Final Carried 5 | 2 5 4 5 4 2 Class Distribution -------------------- 72% | Mutant 27% | Scavenger-Mutant Dominant Class ---------------- Mutant | -10/Materials Scavenger-Mutant | -10/Mines Scavenger-Mutant | -10/Subcaves Scavenger-Mutant | -8/Materials Mutant | -8/Garrison Resources | -11 -10 -10 -10 -8 -8 ----------- Run | Yrd Mat Min Sub Mat Gar Matter Collected 573 | 247 171 32 22 51 50 Remotely . | . . . . . . Salvage Created 580 | 54 210 46 . 51 219 Parts 40 | 8 11 3 . 5 13 Haulers Intercepted . | . . . . . . Recyclers Shooed . | . . . . . . Parts Field Recycled . | . . . . . . Retrieved Matter . | . . . . . . Parts Self-Destructed . | . . . . . . Prevented . | . . . . . . Kills | -11 -10 -10 -10 -8 -8 ------- Run | Yrd Mat Min Sub Mat Gar Combat Hostiles Destroyed 21 | . 6 3 . 3 9 Guns 15 | . 6 3 . 3 3 AOE 6 | . . . . . 6 Classes Destroyed 6 | 2 2 . . . 2 Worker 1 | 1 . . . . . Tunneler 2 | 2 . . . . . Swarmer 9 | . 2 3 . 3 1 Grunt 8 | . 4 . . . 4 Sentry 2 | . . . . . 2 Hunter 2 | . . . . . 2 Best Kill Streak 5 | 2 2 1 . 3 5 Combat Bots Only 5 | . 2 1 . 3 5 Max Kills in Single Turn 2 | 1 1 1 . 1 2 Gunslinging . | . . . . . . Exploded 2 | . . . . . 2 Melee . | . . . . . . Uniques/NPCs Destroyed . | . . . . . . Combat | -11 -10 -10 -10 -8 -8 -------- Run | Yrd Mat Min Sub Mat Gar Hostile Shots Fired 205 | . 25 44 5 10 121 Missed 71 | . 7 13 4 2 45 Hits 134 | . 18 31 1 8 76 Projectile 134 | . 18 31 1 8 76 Critical Strikes 3 | . . . . . 3 Damage Taken 1529 | . 216 239 22 64 988 Core 680 | . 45 80 . . 555 Absorbed by Shields 138 | . . . . . 138 Core Remaining (%) 75 | 100 . . 50 . . Volleys Fired 73 | 7 17 19 3 4 23 Largest 2 | 2 2 2 2 2 2 Hottest 120 | 40 105 105 120 75 105 Shots Fired 124 | 14 34 38 6 8 24 Gun 110 | 14 34 38 3 8 13 Cannon . | . . . . . . Launcher 11 | . . . . . 11 Special 3 | . . . 3 . . Kinetic 58 | 14 26 . 3 4 11 Thermal 66 | . 8 38 3 4 13 Explosive . | . . . . . . Electromagnetic . | . . . . . . Robot Hit Streak 17 | 6 17 2 . 1 9 Robot Miss Streak 10 | 2 3 10 . 2 1 Penetration Max . | . . . . . . Secondary Targets 3 | . . 1 . 2 . Max Gunslinging Chain 1 | . . 1 . 1 . Shots Hit Robots 59 | 8 26 12 . 3 10 Core Hits 42 | 4 15 3 . 3 17 Critical Kills 1 | 1 . . . . . Critical Parts Destroyed . | . . . . . . Critical Strikes 1 | 1 . . . . . Destroy 1 | 1 . . . . . Melee Attacks . | . . . . . . Impact . | . . . . . . Slashing . | . . . . . . Piercing . | . . . . . . Sneak Attacks . | . . . . . . Combat Hostiles . | . . . . . . Follow-up Attacks . | . . . . . . Damage Inflicted 1510 | 72 238 173 . 60 967 Guns 666 | 72 238 173 . 60 123 Cannons . | . . . . . . Explosions 844 | . . . . . 844 Melee . | . . . . . . Ramming . | . . . . . . Kinetic 1073 | 72 157 . . . 844 Thermal 437 | . 81 173 . 60 123 Explosive . | . . . . . . Electromagnetic . | . . . . . . Impact . | . . . . . . Slashing . | . . . . . . Piercing . | . . . . . . Highest Corruption . | . . . . . . Average Corruption . | . . . . . . Corruption Purged . | . . . . . . Corruption Blocked . | . . . . . . Overload Shots . | . . . . . . Overflow Damage 19 | . . . . . 19 Projectiles . | . . . . . . Explosions 19 | . . . . . 19 Melee . | . . . . . . Knockbacks . | . . . . . . Impact . | . . . . . . Kinetic . | . . . . . . Secondary . | . . . . . . Self-Inflicted Damage 156 | . . . . . 156 Shots 5 | . . . . . 5 Rammed . | . . . . . . Targets Rammed . | . . . . . . Kicked . | . . . . . . Crushed . | . . . . . . Highest Temperature 95 | . 45 95 . 21 40 Average Temperature 41 | . 14 66 . 10 17 Received Heat Transfer 441 | . 108 . 6 . 327 Siege Activations . | . . . . . . Martial Activations . | . . . . . . Shielding Activations . | . . . . . . Robots Disrupted . | . . . . . . Combat Hostiles . | . . . . . . Robots Corrupted . | . . . . . . Combat Hostiles . | . . . . . . Parts Fried . | . . . . . . Impact Corruptions . | . . . . . . Robots Melted . | . . . . . . Combat Hostiles . | . . . . . . Parts Melted . | . . . . . . Heat Transferred 977 | . 186 421 . 111 259 Parts Sabotaged . | . . . . . . Parts Stolen . | . . . . . . Parts Stripped . | . . . . . . Power Chain Reactions . | . . . . . . Alert | -11 -10 -10 -10 -8 -8 ------- Run | Yrd Mat Min Sub Mat Gar Maximum Alert Level 1 | . . . . . 1 Low Security (%) 66 | 100 100 100 . 100 12 Level 1 33 | . . . . . 87 Level 2 . | . . . . . . Level 3 . | . . . . . . Level 4 . | . . . . . . Level 5 . | . . . . . . High Security . | . . . . . . Max Security . | . . . . . . Peak Influence 388 | 5 80 51 . 70 388 Initial 22 | . . 11 . . 22 Average 99 | . 22 18 . 41 229 Influence Increases 748 | 15 155 70 . 90 418 Destroy 0b10 Robot/C 420 | . 120 60 . 60 180 Destroy 0b10 Robot/NC 15 | 15 . . . . . Destroy Leader 70 | . 30 10 . 10 20 Successful Hack 10 | . 5 . . 5 . Anti-Garrison Action 50 | . . . . . 50 Destroy Structure 78 | . . . . . 78 Partial Spotted 15 | . . . . 15 . Lose Combat Pursuer 90 | . . . . . 90 Influence Decreases 360 | 15 125 100 . 55 65 Entered New Map 32 | . . 19 . . 13 Time Decay 256 | 15 120 71 . 50 . Lost Part 67 | . . 10 . 5 52 Purge Threat 5 | . 5 . . . . Squads Dispatched 1 | . 1 . . . . Investigation . | . . . . . . Extermination . | . . . . . . Reinforcement 1 | . 1 . . . . Assault . | . . . . . . Garrison . | . . . . . . Intercept . | . . . . . . Searches Triggered . | . . . . . . Construction Impeded . | . . . . . . Haulers Reinforced . | . . . . . . Active Scanning Responses . | . . . . . . Cargo Convoy Interrupts . | . . . . . . Stealth | -11 -10 -10 -10 -8 -8 --------- Run | Yrd Mat Min Sub Mat Gar Distress Signals 2 | . 2 . . . . Communications Jammed . | . . . . . . Distress Signals . | . . . . . . Times Spotted 43 | . 9 2 6 4 22 Peak Tracking Total 8 | . 4 2 5 4 8 Tactical Retreats 4 | . . . 1 . 3 Traps | -11 -10 -10 -10 -8 -8 ------- Run | Yrd Mat Min Sub Mat Gar Traps Triggered 5 | . . . . . 5 Indirectly . | . . . . . . Trap Hack Attempts . | . . . . . . Triggered . | . . . . . . Disarmed . | . . . . . . Reprogrammed . | . . . . . . Reused . | . . . . . . Traps Extracted . | . . . . . . Installed . | . . . . . . Triggered . | . . . . . . Machines | -11 -10 -10 -10 -8 -8 ---------- Run | Yrd Mat Min Sub Mat Gar Machines Disabled 1 | . . . . . 1 Max in Single Turn 1 | . . . . . 1 Garrison Relay 1 | . . . . . 1 Machines Repaired . | . . . . . . Machines Dismantled . | . . . . . . Machines Sabotaged . | . . . . . . Overloaded Fab Kills . | . . . . . . Hacking | -11 -10 -10 -10 -8 -8 --------- Run | Yrd Mat Min Sub Mat Gar Machines Accessed 4 | . 1 . . 3 . Terminals 3 | . 1 . . 2 . Fabricators . | . . . . . . Repair Stations . | . . . . . . Recycling Units . | . . . . . . Scanalyzers . | . . . . . . Garrison Access 1 | . . . . 1 . Total Hacks 8 | . 3 . . 5 . Successful 4 | . 2 . . 2 . Failed 4 | . 1 . . 3 . Catastrophic 1 | . . . . 1 . Database Lockouts . | . . . . . . Manual 7 | . 3 . . 4 . Terminals 7 | . 3 . . 4 . Fabricators . | . . . . . . Repair Stations . | . . . . . . Recycling Units . | . . . . . . Scanalyzers . | . . . . . . Garrison Access 1 | . . . . 1 . Terminal Hacks 1 | . 1 . . . . Unreport Threat 1 | . 1 . . . . Fabricator Hacks . | . . . . . . Repair Station Hacks . | . . . . . . Recycling Unit Hacks . | . . . . . . Scanalyzer . | . . . . . . Garrison Access Hacks 1 | . . . . 1 . Unlock Access 1 | . . . . 1 . Unauthorized Hacks 2 | . 1 . . 1 . Terminals 2 | . 1 . . 1 . Botnet 2 | . 1 . . 1 . Fabricators . | . . . . . . Repair Stations . | . . . . . . Recycling Units . | . . . . . . Scanalyzers . | . . . . . . Garrison Access . | . . . . . . Data Cores Recovered . | . . . . . . Used . | . . . . . . Hacking Detections 2 | . . . . 2 . Full Trace Events . | . . . . . . Feedback Events . | . . . . . . Feedback Blocked . | . . . . . . Robot Schematics Acquired . | . . . . . . Robots Built . | . . . . . . Authchips . | . . . . . . Time . | . . . . . . Total Robot Build Rating . | . . . . . . Part Schematics Acquired . | . . . . . . Parts Built . | . . . . . . Authchips . | . . . . . . Time . | . . . . . . Total Part Build Rating . | . . . . . . Parts Repaired . | . . . . . . Time . | . . . . . . Parts Recycled . | . . . . . . Recycled Matter . | . . . . . . Retrieved Matter . | . . . . . . Retrieved Components . | . . . . . . Parts Scanalyzed . | . . . . . . Part Schematics Acquired . | . . . . . . Parts Damaged . | . . . . . . Bothacking | -11 -10 -10 -10 -8 -8 ------------ Run | Yrd Mat Min Sub Mat Gar Used RIF Installer 1 | . . . . . 1 Robots Hacked . | . . . . . . Non-combat . | . . . . . . Combat . | . . . . . . Robot Hacks Applied . | . . . . . . Relay Couplers Released 5 | . . . . . 5 Machine Destruction 5 | . . . . . 5 Fabnet Peak Effective % . | . . . . . . Robots Rewired . | . . . . . . Allies Hacked . | . . . . . . Hacks Repelled . | . . . . . . Allies | -11 -10 -10 -10 -8 -8 -------- Run | Yrd Mat Min Sub Mat Gar Total Allies . | . . . . . . Largest Group . | . . . . . . Highest-Rated Group . | . . . . . . Highest-Rated Ally . | . . . . . . Total Orders . | . . . . . . Ally Attacks . | . . . . . . Total Damage . | . . . . . . Kills . | . . . . . . Allies Corrupted . | . . . . . . Allies Melted . | . . . . . . Intel | -11 -10 -10 -10 -8 -8 ------- Run | Yrd Mat Min Sub Mat Gar Active Infowar (turns) 251 | . 251 . . . . Seismic 251 | . 251 . . . . Robot Analysis Total . | . . . . . . Derelict Logs Recovered . | . . . . . . Drone Launches . | . . . . . . Drone Recoveries . | . . . . . . Exploration | -11 -10 -10 -10 -8 -8 ------------- Run | Yrd Mat Min Sub Mat Gar Turns Passed 1514 | 187 388 200 99 101 539 Spaces Moved 1163 | 137 236 53 178 166 393 Core 374 | 14 . 5 . 4 351 Treads . | . . . . . . Legs 267 | 123 144 . . . . Wheels . | . . . . . . Hover . | . . . . . . Flight 522 | . 92 48 178 162 42 Fastest Speed 34 | 50 37 37 37 34 34 Average Speed 81 | 112 87 42 37 41 110 Slowest Speed 200 | 120 120 100 37 200 200 Overloaded Moves . | . . . . . . Propulsion Burnouts . | . . . . . . Robots Hopped . | . . . . . . Potential Cave-ins . | . . . . . . Cave-ins Triggered . | . . . . . . Exploration Rate (%) 20 | 6 35 12 18 14 40 Regions Visited 5 Branch Regions 2 Pre-discovered Areas 1 | . . 1 . . . Known Exits Taken 1 | . . . . 1 . Unknown Exits Taken 4 | 1 1 1 1 . . Scrap Searched . | . . . . . . Spaces Dug . | . . . . . . Terrain Destroyed 135 | . . . . . 135 Melee . | . . . . . . Projectile . | . . . . . . AOE 135 | . . . . . 135 Terrain Rammed . | . . . . . . Walls Destroyed . | . . . . . . Machines Disabled . | . . . . . . Actions | -11 -10 -10 -10 -8 -8 --------- Run | Yrd Mat Min Sub Mat Gar Total 1603 | 158 386 193 198 192 476 Wait 245 | 1 114 110 16 . 4 Move 1152 | 136 235 52 177 165 387 Hop . | . . . . . . Pick Up 35 | 8 8 4 1 9 5 Fast Attach . | . . . . . . Attach 25 | 6 2 3 . 7 7 Detach . | . . . . . . Swap 11 | . 6 1 1 2 1 Drop 13 | . 4 4 . 5 . Fire 73 | 7 17 19 3 4 23 Melee . | . . . . . . Ram . | . . . . . . Kick . | . . . . . . Crush . | . . . . . . Escape Stasis 49 | . . . . . 49 Rewire . | . . . . . . Trap . | . . . . . . Miscellaneous . | . . . . . . Route ------- -11/Scrapyard -10/Materials (discovered 2 exits: [*Min x2]) -10/Mines -10/Subcaves -8/Materials -8/Garrison (discovered 2 exits: [*Mat x2]) History --------- Turn | Location | Event 4 | -11/Scrapyard | Discovered new exit (range 16) 188 | -11/Scrapyard | Entered Materials 240 | -10/Materials | Discovered new exit (range 16) 304 | -10/Materials | Build established: Mutant 504 | -10/Materials | Discovered new exit (range 7) 576 | -10/Materials | Entered Mines 638 | -10/Mines | Met a Derelict bent on vengeance 670 | -10/Mines | Learned location of Storage (-8) 773 | -10/Mines | Discovered new exit (range 7) 776 | -10/Mines | Entered Subcaves 777 | -10/Subcaves | Approached by a straggling Scientist 840 | -10/Subcaves | Shifting Twisted Machinery released Sub. Shrapnel Launcher 843 | -10/Subcaves | Shifting Twisted Machinery released Mak. Spear 848 | -10/Subcaves | Shifting Twisted Machinery released Sub. Optics 852 | -10/Subcaves | Shifting Twisted Machinery released Sub. Beam Cannon 869 | -10/Subcaves | Discovered new exit (range 16) 875 | -10/Subcaves | Entered Materials 875 | -8/Materials | Evolved 4 slots: Propulsion x1, Utility x3 976 | -8/Materials | Identified exit to Garrison 976 | -8/Materials | Entered Garrison 988 | -8/Garrison | Build established: Scavenger-Mutant 990 | -8/Garrison | Triggered checkpoint 996 | -8/Garrison | Triggered checkpoint 1044 | -8/Garrison | Lost 7 parts (1p3n2u1w) 1147 | -8/Garrison | Discovered new exit (range 11) 1195 | -8/Garrison | Attempted to access garrison exit controls, blocked by remote lockdown 1270 | -8/Garrison | Triggered checkpoint 1300 | -8/Garrison | Build established: Mutant 1360 | -8/Garrison | Triggered checkpoint 1425 | -8/Garrison | Discovered new exit (range 12) 1440 | -8/Garrison | Attempted to access garrison exit controls, blocked by remote lockdown 1461 | -8/Garrison | Triggered checkpoint 1471 | -8/Garrison | Core integrity fell below 50% 1500 | -8/Garrison | Installed Relay Interface Framework 1509 | -8/Garrison | Core integrity fell below 20% 1512 | -8/Garrison | Triggered checkpoint 1515 | -8/Garrison | Destroyed by G-47 Trooper with Particle Gun Last Messages --------------- 01468_ Hvy. Particle Gun destroyed. 01473_ Particle Gun destroyed. Initiating installation procedure... 01500_ Relay Interface Framework installed. With RIF installed, you can review your current list of abilities via the new button at the top-right of the HUD, or Spacebar+i. 01511_ Triggered Stasis Trap. 01511_ A bubble of rippling energy engulfs the area. 01511_ Field strength at 94. 01512_ Beams of light sweep through the air. An alarm sounds. 01512_ Field strength at 86. 01513_ Penetrated by Slug. 01513_ Field strength at 75. 01513_ Critical hit (Burn: +27). 01514_ Field strength at 57. 01515_ Field strength at 51. [Achievement: Back For More] Map ----- +----------------------------------------------------+ | ??# #???????????????????????????? | | ??# #???????????????????????????? | | ??### ## ## ###???????????????????????????? | | ????# ## ## ###########???????????????????? | | ???? #???????????????????? | | ??? #???????????????????? | | ???## ######## #???????????????????? | | ????## ##""""######??????# #???????????????????? | | ?????# #?????????????????# #???????????????????? | | ?????# ??????????????????# #???????????????????? | | ?????? ??????????????????# #???????????????????? | | ??????????????????????????# #???????????????????? | | ??????????????????????????# #???????????????????? | | ??????????????????????????# #???????????????????? | | ??????????????????????????# #???????????????????? | | ??????????????????????????# #???????????????????? | | ??????????????????????????# #???????????????????? | | ??????????????????????????# #???????????????????? | | ??????????????????????????# #???????????????????? | | ??????????????????????????# #???????????????????? | | ??????????????????????????# #???????????????????? | | ??????????????????????????# #???????????????????? | | ?????????????????????###??# #???????#####???????? | | ?????????????????????# ?# #???????# #???????? | | ???????????????####### gg## ######### < ######### | | ???????????????# @ s g | | ???????????????# s g h b | | ???????????????# ############################### | | ?????????????### #?????????????????????????????# | | ?????????????#"# #?????????????????????????????# | | ?????????????#" #????????????????????????????? | | ?????????????#" #????????????????????????????? | | ?????????????#" #????????????????????????????? | | ?????????????#"# #?????????????????????????????# | | ?????????????### #?????????????????????????????# | | ???????????????## #?????????????????????????????? | | ???????????????## ##????????????????????????????? | | ???????????????# #????????????????????????????? | | ???????????????#" "#????????????????????????????? | | ???????????????#" "#????????????????????????????? | | ???????????????#" "#?????????????????????????????[ | | ???????????????#"""#?????????????????????????????# | | ???????????????#####?????????????????????????????? | | ?????????????????????????????????????????????????? | | ?????????????????????????????????????????????????? | | ?????????????????????????????????????????????????? | | ?????????????????????????????????????????????????? | | ?????????????????????????????????????????????????? | | ?????????????????????????????????????????????????? | | ?????????????????????????????????????????????????? | +----------------------------------------------------+ Best States ------------- Heat Dissipation 41 Energy Generation 14 Energy Capacity 160 Matter Stores 300 Matter Capacity 300 Sight Range 16 Terrain Scan Density 10 Evasion (%) 63 Targeting Accuracy 14 Item Schematics ----------------- None Robot Schematics ------------------ None Fabricated ------------ Nothing Repaired ---------- Nothing Alien Tech Used ----------------- None Achievements -------------- Back For More Challenges ------------ None Game ------ Seed DeepZionitePit Manual? 0 Play Time 00:12:29 Cumulative 17.0 hours Start 2025.10.11 @ 17:54:19 End 2025.10.11 @ 18:06:06 Sessions 1 Manual Loads 0 Difficulty Rogue Special Mode None Game No. 50 Rogue 50 Adventurer 0 Explorer 0 Win Type - Total 0 Types 0/0/0/0/0/0/0/0/0/0 Lore% 27 Gallery% 22 Achievement% 23 Wizard Run 0 Options --------- Layout 1 ASCII 0 Keyboard 0 Movement Numpad Keybinds 0 Fullscreen 1 Font 24/Smallcaps Map View 50x35 Zoom Use 0% Tactical HUD 1 Map Filters NONE Filters NONE Steam 1 RUN: c1bd3d5a-442f-4b6c-b9b3-817bead65a81